bitfinex/quotes_BTCUSD_20260125
["timestamp","ask_amount","ask_price","bid_price","bid_amount"]
[1769374844877,0.21049232,86724.0,86708.0,0.06919724]
[1769374845077,0.21049232,86724.0,86706.0,1.33419197]
[1769374845287,0.21096456,86724.0,86707.0,0.01153309]
[1769374845444,0.00444224,86724.0,86708.0,0.01153296]
[1769374845654,0.00047224,86724.0,86711.0,0.19890688]
[1769374845849,0.00047224,86724.0,86711.0,1.34587232]
[1769374846080,0.00047224,86724.0,86711.0,1.33433976]
[1769374846488,0.00047224,86724.0,86711.0,0.19890688]
[1769374847057,0.00047224,86724.0,86706.0,1.33433976]
[1769374847273,0.21096456,86724.0,86706.0,1.33433976]
[1769374847971,0.22202355,86721.0,86701.0,1.13543288]
[1769374848171,0.21049232,86721.0,86701.0,1.33433976]
[1769374848371,0.21049232,86721.0,86702.0,0.19890688]
[1769374848953,0.21049232,86721.0,86702.0,1.33433976]
[1769374849339,0.21049232,86721.0,86702.0,1.34587351]
[1769374849544,0.21049232,86721.0,86702.0,1.33433976]
[1769374849845,1.28297981,86721.0,86702.0,1.33433976]
[1769374850043,1.28297981,86721.0,86703.0,0.19890688]
[1769374850493,1.07248749,86721.0,86703.0,0.19890688]
[1769374850675,0.05765217,86727.0,86706.0,1.13543288]
[1769374850887,0.21049232,86724.0,86706.0,1.13543288]
[1769374851479,0.21049232,86725.0,86706.0,1.13543288]
[1769374852772,0.21049232,86725.0,86700.0,0.36014814]
[1769374852773,0.00014153,86727.0,86712.0,0.01153242]
[1769374852978,0.00014153,86727.0,86713.0,0.01153229]
[1769374853226,0.00014153,86727.0,86714.0,0.19890688]
[1769374853427,0.00014153,86727.0,86715.0,0.19890688]
[1769374853644,0.00014153,86727.0,86716.0,1.33433976]
[1769374854075,0.00014153,86727.0,86719.0,0.01153149]
[1769374854276,0.0248209,86728.0,86721.0,0.19890688]
[1769374854404,0.0002,86731.0,86721.0,0.21012346]
[1769374854605,0.0002,86731.0,86721.0,0.19859223]
[1769374855232,0.05793728,86746.0,86721.0,0.19859223]
[1769374855233,0.21078992,86746.0,86722.0,1.13543288]
[1769374855504,0.21049232,86744.0,86723.0,0.19890688]
[1769374855683,0.21049232,86744.0,86724.0,1.13543288]
[1769374856041,0.21049232,86744.0,86715.0,0.17716]
[1769374856042,0.0002976,86746.0,86732.0,1.13543288]
[1769374856238,0.0002976,86746.0,86735.0,0.19890688]
[1769374856849,0.0002976,86746.0,86740.0,0.0115287]
[1769374857031,0.0002976,86746.0,86736.0,0.34861412]
[1769374857417,0.0002,86758.0,86742.0,0.01152844]
[1769374857574,0.0002,86758.0,86745.0,1.14696092]
[1769374857777,0.01152445,86772.0,86736.0,0.23058381]
[1769374857778,0.21049232,86779.0,86756.0,0.19890688]
[1769374857976,0.21049232,86779.0,86755.0,0.01152671]
[1769374857977,0.21049232,86779.0,86760.0,0.21043292]
[1769374858163,0.21049232,86779.0,86759.0,0.01152618]
[1769374858164,0.21049232,86779.0,86763.0,0.01152565]
[1769374858372,0.0002976,86781.0,86769.0,0.01152485]
[1769374858569,0.0002976,86781.0,86766.0,0.01152525]
[1769374858570,0.0002976,86781.0,86766.0,0.19890688]
[1769374858763,0.0002976,86781.0,86762.0,1.13543288]
[1769374859027,0.0002976,86781.0,86761.0,0.17716]
[1769374859028,0.0002976,86781.0,86768.0,0.19890688]
[1769374859229,0.0002976,86781.0,86764.0,0.01152551]
[1769374859230,0.0002976,86781.0,86755.0,0.0621622]
[1769374859231,0.0002976,86781.0,86759.0,0.01152618]
[1769374859232,0.00014153,86781.0,86759.0,0.01152618]
[1769374859568,0.00014153,86781.0,86759.0,0.19890688]
[1769374859569,0.01152379,86777.0,86759.0,0.19890688]
[1769374859787,0.21049232,86775.0,86759.0,0.19890688]
[1769374860005,0.01152472,86770.0,86760.0,0.001]
[1769374860209,0.01152472,86770.0,86746.0,0.06455595]
[1769374860210,0.01152511,86767.0,86750.0,0.19890688]
[1769374860370,0.05090118,86768.0,86730.0,0.04612]
[1769374860595,0.05090118,86768.0,86742.0,0.19890688]
[1769374860596,0.01152538,86765.0,86742.0,0.19890688]
[1769374860764,0.06914991,86768.0,86744.0,0.19890688]
[1769374860765,0.01152498,86768.0,86744.0,0.19890688]
[1769374860986,0.43533064,86780.0,86744.0,0.19890688]
[1769374860987,0.01152379,86777.0,86755.0,1.13543288]
[1769374861186,0.01152352,86779.0,86758.0,1.13543288]
[1769374861385,0.01166478,86781.0,86758.0,1.13543288]
[1769374861386,0.21049232,86778.0,86759.0,0.19890688]
[1769374862235,0.01152379,86777.0,86759.0,0.19890688]
[1769374862438,0.01152339,86780.0,86759.0,0.19890688]
[1769374862439,0.21049232,86778.0,86759.0,0.19890688]
[1769374862863,0.01152352,86779.0,86759.0,0.19890688]
[1769374863079,0.06928152,86781.0,86760.0,1.05411678]
[1769374863080,0.21049232,86778.0,86760.0,1.05411678]
[1769374863230,0.00014153,86781.0,86759.0,0.21043306]
[1769374863231,0.00014153,86781.0,86762.0,0.05762889]
[1769374863435,0.00014153,86781.0,86765.0,1.05411678]
[1769374863687,0.2099484,86787.0,86766.0,0.01152525]
[1769374863891,0.2099484,86787.0,86766.0,0.00014153]
[1769374864107,0.21034637,86784.0,86766.0,0.00014153]
[1769374864308,0.01152286,86784.0,86766.0,0.00014153]
[1769374864520,0.21034637,86785.0,86766.0,0.00014153]
[1769374865045,0.21034637,86786.0,86766.0,0.00014153]
[1769374865227,0.22186896,86786.0,86766.0,0.00014153]
[1769374865612,0.21034637,86786.0,86766.0,0.00014153]
[1769374866020,0.21034637,86786.0,86768.0,0.21687104]
[1769374866919,0.21134637,86786.0,86768.0,0.21687104]
[1769374867114,0.22286896,86786.0,86768.0,0.21687104]
[1769374867351,0.06011559,86786.0,86768.0,0.21687104]
[1769374867589,0.048593,86786.0,86769.0,1.05411678]
[1769374867753,0.048593,86786.0,86768.0,0.21687104]
[1769374868147,0.048593,86786.0,86760.0,0.01152604]
[1769374868148,0.01152392,86776.0,86757.0,0.21687104]
[1769374868365,0.18143267,86775.0,86757.0,0.39395104]
[1769374868566,0.00014139,86776.0,86742.0,1.05411678]
[1769374868567,0.01152511,86767.0,86742.0,1.05411678]
[1769374868739,0.01152511,86767.0,86736.0,0.01152923]
[1769374868740,0.18143267,86767.0,86745.0,0.21687104]
[1769374868923,0.18143267,86767.0,86740.0,0.0115287]
[1769374868924,0.18143267,86767.0,86751.0,0.21687104]
[1769374869125,0.01152511,86767.0,86742.0,0.21687104]
[1769374869407,0.18183168,86766.0,86744.0,0.21687104]
[1769374869631,1.16651885,86765.0,86744.0,0.21687104]
[1769374869837,1.35987671,86759.0,86737.0,0.21687104]
[1769374870011,1.16651885,86759.0,86742.0,1.05411678]
[1769374870167,1.16651885,86759.0,86743.0,0.21687104]
[1769374870370,1.16651885,86759.0,86742.0,1.05411678]
[1769374870573,1.16651885,86759.0,86743.0,0.21687104]
[1769374870955,1.16651885,86759.0,86743.0,0.22839934]
[1769374871174,1.16651885,86759.0,86743.0,0.21687104]
[1769374871865,0.01152644,86757.0,86743.0,0.21687104]
[1769374872098,0.18259412,86759.0,86738.0,0.21687104]
[1769374872320,0.01152644,86757.0,86738.0,0.21687104]
[1769374872574,0.01152631,86758.0,86738.0,0.21687104]
[1769374872813,0.1845478,86759.0,86738.0,0.21687104]
[1769374873033,0.19607398,86759.0,86738.0,0.21687104]
[1769374873293,0.1845478,86759.0,86738.0,0.22840001]
[1769374873498,0.01152684,86754.0,86738.0,0.21687104]
[1769374873721,0.01152684,86754.0,86736.0,1.23119678]
[1769374873722,0.01152697,86753.0,86736.0,0.17708]
[1769374873957,0.01152697,86753.0,86728.0,0.06918176]
[1769374873958,0.21034637,86738.0,86712.0,1.05411678]
[1769374874194,0.21034637,86738.0,86716.0,1.06564867]
[1769374874415,0.01152897,86738.0,86718.0,0.21687104]
[1769374874644,0.01152897,86738.0,86709.0,0.01153282]
[1769374874645,0.21034637,86736.0,86715.0,1.05411678]
[1769374874864,0.01152937,86735.0,86715.0,1.05411678]
[1769374875140,0.221876,86733.0,86715.0,1.05411678]
[1769374875356,0.01152976,86732.0,86711.0,0.21687104]
[1769374875578,0.2319656,86726.0,86703.0,0.23660156]
[1769374875802,0.23055664,86747.0,86703.0,0.00047224]
[1769374875803,0.22043504,86719.0,86703.0,0.00047224]
[1769374876027,0.22043504,86710.0,86696.0,0.0004153]
[1769374876247,0.21090602,86710.0,86696.0,0.0004153]
[1769374876652,0.21090602,86710.0,86696.0,0.00156832]
[1769374877255,0.21090602,86710.0,86696.0,0.0004153]
[1769374878970,0.21090602,86710.0,86684.0,0.23660156]
[1769374878971,0.05766694,86705.0,86684.0,0.23660156]
[1769374879086,0.23196826,86706.0,86684.0,1.32768261]
[1769374879290,0.23196826,86706.0,86685.0,0.23660156]
[1769374879609,0.23196826,86706.0,86686.0,0.23660156]
[1769374879812,0.22043504,86706.0,86686.0,0.23660156]
[1769374880261,0.22043504,86706.0,86687.0,0.01153575]
[1769374880601,0.00047098,86710.0,86690.0,0.23660156]
[1769374880925,0.22043504,86703.0,86678.0,0.24813851]
[1769374881128,0.22043504,86700.0,86679.0,0.23660156]
[1769374881329,1.07835708,86691.0,86672.0,0.23660156]
[1769374881507,1.29879212,86691.0,86672.0,0.23660156]
[1769374881909,1.07835708,86689.0,86672.0,0.23660156]
[1769374882883,0.22043504,86690.0,86675.0,1.09108105]
[1769374883027,0.435647,86710.0,86683.0,0.01153628]
[1769374883228,0.435647,86710.0,86686.0,0.23660156]
[1769374883229,0.22043504,86708.0,86686.0,0.23660156]
[1769374883424,0.22043504,86708.0,86671.0,0.0004153]
[1769374883425,0.43517602,86700.0,86675.0,0.23660156]
[1769374883674,0.22043504,86699.0,86675.0,0.23660156]
[1769374883873,0.22043504,86699.0,86678.0,0.23660156]
[1769374884089,0.22043504,86699.0,86679.0,1.09108105]
[1769374884297,0.22043504,86699.0,86680.0,0.23660156]
[1769374884428,0.22043504,86699.0,86682.0,1.10261747]
[1769374884646,0.23477282,86709.0,86688.0,0.01153562]
[1769374884647,0.22043504,86709.0,86688.0,0.01153562]
[1769374884882,0.22043504,86709.0,86689.0,1.09108105]
[1769374885033,0.22043504,86709.0,86690.0,0.23660156]
[1769374885532,0.22043504,86709.0,86690.0,1.09108105]
[1769374885734,0.22043504,86709.0,86693.0,0.01153495]
[1769374886033,0.22043504,86709.0,86693.0,0.00772609]
[1769374886284,0.22043504,86709.0,86692.0,1.33921769]
[1769374886478,0.22043504,86709.0,86693.0,0.01153495]
[1769374886634,0.22043504,86709.0,86692.0,1.32768261]
[1769374886835,0.22043504,86709.0,86692.0,1.33921769]
[1769374887455,0.22043504,86709.0,86693.0,0.01153495]
[1769374887674,0.22043504,86709.0,86692.0,1.32768261]
[1769374888268,0.00047098,86710.0,86693.0,1.09108105]
[1769374888505,0.00047098,86710.0,86694.0,0.23660156]
[1769374889267,0.00047098,86710.0,86694.0,0.23161434]
[1769374889468,0.00047098,86710.0,86694.0,0.22537869]
[1769374889682,0.01153296,86708.0,86687.0,1.09108105]
[1769374889881,0.01153296,86708.0,86681.0,0.01153655]
[1769374889882,0.22043504,86703.0,86684.0,0.23660156]
[1769374890309,0.17133482,86749.0,86648.0,0.73748899]
[1769374890310,0.22043504,86729.0,86708.0,1.09108105]
[1769374890589,0.22043504,86729.0,86711.0,1.09108105]
[1769374890783,0.22043504,86729.0,86709.0,0.01153282]
[1769374890784,0.02528538,86729.0,86713.0,0.01153229]
[1769374891007,0.22006253,86735.0,86717.0,0.01153176]
[1769374891207,0.22006253,86735.0,86718.0,0.23660156]
[1769374891858,0.22006253,86735.0,86718.0,0.24813319]
[1769374892004,0.22006253,86735.0,86718.0,0.23117612]
[1769374892225,0.22006253,86735.0,86718.0,0.21791923]
[1769374892429,0.22006253,86735.0,86718.0,0.2120266]
[1769374892648,0.22043504,86743.0,86720.0,0.23660156]
[1769374892848,0.22043504,86743.0,86715.0,0.05765969]
[1769374892849,0.22043504,86733.0,86712.0,0.01153242]
[1769374893131,0.01152857,86741.0,86717.0,1.06963473]
[1769374893339,1.16513394,86737.0,86718.0,0.21826123]
[1769374893521,1.16513394,86737.0,86712.0,0.01153242]
[1769374893522,1.16513394,86735.0,86710.0,1.08116742]
[1769374893723,0.22654338,86732.0,86710.0,1.28789596]
[1769374893956,0.22654338,86728.0,86712.0,0.01153242]
[1769374894142,1.16513394,86725.0,86711.0,0.01153256]
[1769374894346,0.22654338,86724.0,86711.0,0.01153256]
[1769374894614,0.22654338,86724.0,86712.0,0.01153242]
[1769374894766,0.22654338,86724.0,86710.0,0.01153269]
[1769374895374,0.22654338,86724.0,86711.0,0.01153256]
[1769374895783,0.22654338,86724.0,86710.0,0.01153269]
[1769374895994,0.22654338,86724.0,86711.0,0.01153256]
[1769374896537,0.22654338,86724.0,86711.0,1e-08]
[1769374896750,0.22654338,86724.0,86711.0,0.02300925]
[1769374896949,0.23807195,86741.0,86712.0,0.21826123]
[1769374897083,0.22654338,86740.0,86715.0,0.01153203]
[1769374897266,0.17716,86748.0,86711.0,0.06919517]
[1769374897267,0.22654338,86735.0,86711.0,0.01153256]
[1769374897474,0.22654338,86735.0,86710.0,0.01153269]
[1769374897475,0.22654338,86733.0,86710.0,0.01153269]
[1769374897712,0.22654338,86733.0,86712.0,0.01153242]
[1769374897916,0.22654338,86733.0,86711.0,0.01153256]
[1769374898160,0.22654338,86733.0,86715.0,0.01153203]
[1769374898374,0.00934995,86733.0,86713.0,0.01153229]
[1769374898566,0.00934995,86733.0,86711.0,0.22378095]
[1769374898769,0.01152976,86732.0,86708.0,0.00014153]
[1769374898930,0.0519029,86728.0,86708.0,0.00014153]
[1769374899132,0.01153056,86726.0,86708.0,0.00014153]
[1769374899330,0.06351785,86725.0,86700.0,0.01153402]
[1769374899530,0.05212841,86725.0,86703.0,0.01153362]
[1769374900982,0.05212841,86725.0,86705.0,0.01153336]
[1769374901212,0.05212841,86725.0,86706.0,0.01153322]
[1769374901440,0.05212841,86725.0,86708.0,2e-08]
[1769374901610,0.05212841,86725.0,86707.0,0.01153309]
[1769374901810,0.05212841,86725.0,86703.0,0.23386046]
[1769374901811,0.05212841,86725.0,86705.0,0.01153336]
[1769374901958,0.05212841,86725.0,86707.0,0.01153309]
[1769374902159,0.05212841,86725.0,86705.0,0.01153336]
[1769374902396,0.05212841,86725.0,86706.0,0.01153322]
[1769374902576,0.05212841,86725.0,86705.0,0.23081719]
[1769374902790,0.05212841,86725.0,86707.0,0.01153309]
[1769374902991,0.05212841,86725.0,86706.0,0.01153322]
[1769374903535,0.05212841,86725.0,86705.0,0.23081719]
[1769374903730,0.05212841,86725.0,86706.0,0.01153322]
[1769374903935,0.05212841,86725.0,86705.0,0.23081719]
[1769374904282,0.05212841,86725.0,86705.0,0.28848383]
[1769374904499,0.05212841,86725.0,86706.0,0.02301095]
[1769374904700,0.05212841,86725.0,86709.0,1e-08]
[1769374904903,0.05212841,86725.0,86705.0,0.18468586]
[1769374905104,0.05212841,86725.0,86700.0,0.21826123]
[1769374905438,0.11450623,86737.0,86717.0,1.02345239]
[1769374905651,0.11697483,86747.0,86726.0,0.21479423]
[1769374905851,0.11697483,86747.0,86719.0,1.06963473]
[1769374905852,1.28004532,86746.0,86727.0,0.01153043]
[1769374906012,1.28004532,86746.0,86733.0,0.17208768]
[1769374906013,1.16527541,86746.0,86733.0,0.17208768]
[1769374906212,1.16527541,86746.0,86732.0,0.01152976]
[1769374906213,1.16527541,86746.0,86734.0,0.21826123]
[1769374906214,0.00014147,86746.0,86734.0,0.21826123]
[1769374906433,0.00014147,86746.0,86739.0,0.05764409]
[1769374906751,0.00014147,86746.0,86742.0,0.21826123]
[1769374906950,0.00014147,86746.0,86743.0,0.0115283]
[1769374907152,0.04682554,86758.0,86743.0,0.96576796]
[1769374907381,0.04682554,86758.0,86745.0,0.01152804]
[1769374907556,0.04682554,86758.0,86745.0,1e-08]
[1769374908291,0.05835185,86758.0,86745.0,1e-08]
[1769374908497,0.22654338,86754.0,86745.0,1e-08]
[1769374909058,0.01152711,86752.0,86745.0,1e-08]
[1769374909258,0.22654338,86751.0,86745.0,1e-08]
[1769374909860,0.22654338,86749.0,86745.0,1e-08]
[1769374910066,1.124768,86748.0,86745.0,1e-08]
[1769374910305,1.35131138,86748.0,86745.0,1e-08]
[1769374912083,0.22654338,86757.0,86740.0,0.05764338]
[1769374912291,1.124768,86754.0,86740.0,1e-08]
[1769374912488,1.124768,86766.0,86740.0,1.06963473]
[1769374912708,0.22654338,86763.0,86743.0,0.0115283]
[1769374912905,0.22654338,86761.0,86741.0,0.17209087]
[1769374913125,0.01152511,86767.0,86741.0,0.17209087]
[1769374913126,1.124768,86758.0,86743.0,0.0115283]
[1769374913331,1.35131138,86758.0,86741.0,1.21861173]
[1769374913533,0.22654338,86757.0,86744.0,1e-08]
[1769374914112,0.22654338,86755.0,86744.0,1e-08]
[1769374914342,1.124768,86754.0,86744.0,1e-08]
[1769374914562,0.43517602,86760.0,86744.0,1e-08]
[1769374914563,1.124768,86752.0,86744.0,1e-08]
[1769374915308,1.124768,86750.0,86744.0,1e-08]
[1769374915513,0.22654338,86770.0,86746.0,1.06963473]
[1769374915719,0.22654338,86770.0,86746.0,0.83885593]
[1769374915720,1.16513394,86767.0,86746.0,0.83885593]
[1769374915916,0.22654338,86764.0,86744.0,0.21826124]
[1769374916142,1.16513394,86761.0,86744.0,0.21826124]
[1769374916491,0.22654338,86755.0,86744.0,1e-08]
[1769374916690,1.39167732,86753.0,86744.0,1e-08]
[1769374916897,0.01152644,86757.0,86744.0,1e-08]
[1769374916898,1.16513394,86751.0,86744.0,1e-08]
[1769374921485,0.22654338,86752.0,86744.0,1e-08]
[1769374923178,1.16513394,86755.0,86744.0,1e-08]
[1769374923385,0.27297897,86766.0,86747.0,0.01152777]
[1769374923614,0.27297897,86766.0,86749.0,0.27046552]
[1769374923941,1.42882511,86766.0,86749.0,0.28199303]
[1769374924526,1.42982511,86766.0,86749.0,0.27046552]
[1769374924689,1.42982511,86766.0,86744.0,0.27046553]
[1769374924894,1.15684614,86766.0,86744.0,0.33963431]
[1769374925094,1.15584614,86764.0,86744.0,0.33963431]
[1769374925288,1.15584614,86764.0,86746.0,0.0115279]
[1769374925690,1.15584614,86764.0,86744.0,0.27046553]
[1769374925896,1.15584614,86764.0,86747.0,0.01152777]
[1769374926113,0.17712,86768.0,86750.0,1.11884233]
[1769374926318,1.33296614,86768.0,86750.0,1.11884233]
[1769374926539,1.60594511,86768.0,86750.0,1.38930785]
[1769374926845,1.15584614,86767.0,86750.0,0.27046552]
[1769374927454,1.42882511,86767.0,86750.0,0.27046552]
[1769374927759,0.27297897,86763.0,86744.0,1e-08]
[1769374927997,0.27297897,86759.0,86744.0,1e-08]
[1769374928209,1.42882511,86756.0,86744.0,1e-08]
[1769374928387,0.43542363,86760.0,86744.0,1e-08]
[1769374928590,0.43542363,86760.0,86744.0,0.27046553]
[1769374929042,1.59126977,86760.0,86744.0,0.27046553]
[1769374929254,1.15584614,86760.0,86744.0,0.27046553]
[1769374930290,0.27297897,86765.0,86744.0,0.27046553]
[1769374930291,0.27297897,86765.0,86747.0,0.01152777]
[1769374930526,0.17708,86767.0,86751.0,1.38930785]
[1769374930741,0.17708,86767.0,86753.0,0.01152697]
[1769374930943,0.17708,86767.0,86753.0,0.06422991]
[1769374931213,0.17708,86767.0,86751.0,1.40083509]
[1769374931214,1.33292614,86767.0,86751.0,1.38930785]
[1769374931370,1.33292614,86767.0,86754.0,0.01152684]
[1769374931578,1.33292614,86767.0,86751.0,1.38930785]
[1769374931981,1.33292614,86767.0,86755.0,0.01152671]
[1769374932173,0.43542363,86770.0,86754.0,0.27046552]
[1769374932174,0.17708,86769.0,86754.0,0.27046552]
[1769374932382,0.17708,86769.0,86755.0,0.01152671]
[1769374932585,0.17708,86772.0,86754.0,0.27046552]
[1769374932781,0.17708,86772.0,86756.0,0.27046552]
[1769374933076,1.42882511,86769.0,86750.0,0.01152737]
[1769374933279,1.42882511,86769.0,86751.0,0.01152724]
[1769374933490,1.42882511,86769.0,86751.0,0.27046552]
[1769374933948,1.15584614,86769.0,86751.0,0.27046552]
[1769374934175,0.27297897,86768.0,86752.0,1.11884233]
[1769374934371,0.45005897,86772.0,86752.0,0.27046552]
[1769374934524,1.59126977,86770.0,86752.0,0.28199263]
[1769374934694,1.15584614,86770.0,86753.0,0.28199249]
[1769374934894,1.15584614,86770.0,86754.0,0.27046552]
[1769374935101,0.27297897,86772.0,86756.0,1.11884233]
[1769374935303,0.11511009,86771.0,86756.0,0.2819921]
[1769374935509,0.27297897,86772.0,86757.0,1.12481861]
[1769374935735,0.27297897,86772.0,86758.0,0.01152631]
[1769374936088,0.27297897,86772.0,86759.0,0.01152618]
[1769374936382,0.27297897,86772.0,86761.0,0.01152591]
[1769374936600,0.27297897,86772.0,86760.0,0.01152604]
[1769374936746,0.17708,86775.0,86764.0,0.01152551]
[1769374936950,0.17708,86775.0,86765.0,1.12481755]
[1769374937265,1.295446,86784.0,86767.0,0.27693889]
[1769374937483,1.295446,86784.0,86768.0,0.27693889]
[1769374937666,1.295446,86784.0,86768.0,0.28846387]
[1769374937870,1.295446,86784.0,86768.0,0.27693889]
[1769374938069,1.295446,86784.0,86768.0,0.28846387]
[1769374938271,0.17708,86784.0,86769.0,1.39023106]
[1769374938465,0.0005778,86779.0,86770.0,0.27693889]
[1769374938733,0.0005778,86779.0,86771.0,0.28846347]
[1769374938939,0.0005778,86779.0,86773.0,1.39023106]
[1769374939125,0.0005778,86779.0,86773.0,1.38642102]
[1769374939353,0.0005778,86779.0,86775.0,0.27693889]
[1769374939563,0.0005778,86779.0,86776.0,0.27693889]
[1769374940066,1.118366,86799.0,86779.0,0.27693889]
[1769374940200,1.118366,86799.0,86780.0,0.27339387]
[1769374940400,1.118366,86799.0,86780.0,0.270735]
[1769374940701,1.118366,86799.0,86769.0,0.01152485]
[1769374940702,0.01152352,86779.0,86755.0,0.27693889]
[1769374941077,0.01152352,86779.0,86734.0,0.05090118]
[1769374941078,0.44694835,86770.0,86745.0,0.01152804]
[1769374941262,1.118366,86767.0,86746.0,1.12482007]
[1769374941450,1.118366,86767.0,86747.0,1.11329217]
[1769374941665,1.118366,86767.0,86750.0,0.27693889]
[1769374942021,1.118366,86767.0,86751.0,1.11329217]
[1769374942226,0.2943525,86768.0,86752.0,1.40175817]
[1769374942682,0.00014139,86770.0,86756.0,1.12481875]
[1769374942850,0.00014139,86770.0,86756.0,1.11329217]
[1769374943094,0.00014139,86770.0,86753.0,0.27693889]
[1769374943095,1.118366,86769.0,86753.0,0.27693889]
[1769374943633,1.118366,86769.0,86754.0,0.27693889]
[1769374944053,0.00014139,86770.0,86754.0,0.27693889]
[1769374944354,1.118366,86769.0,86754.0,0.27693889]
[1769374945452,1.118366,86765.0,86746.0,0.27693889]
[1769374945638,1.118366,86765.0,86744.0,1e-08]
[1769374945639,1.118366,86753.0,86744.0,1e-08]
[1769374946066,0.01,86754.0,86744.0,1e-08]
[1769374946067,0.2943525,86746.0,86744.0,1e-08]
[1769374946207,0.2943525,86742.0,86724.0,0.28846972]
[1769374946411,0.06916427,86750.0,86724.0,0.28846972]
[1769374946412,1.4127185,86741.0,86724.0,0.28846972]
[1769374946636,1.4127185,86741.0,86727.0,0.01153043]
[1769374946840,1.118366,86740.0,86724.0,0.27693889]
[1769374947041,1.118366,86740.0,86725.0,0.0115307]
[1769374947435,1.11850732,86740.0,86724.0,0.28846972]
[1769374947821,0.00083558,86739.0,86727.0,0.01153043]
[1769374948053,0.00083558,86739.0,86728.0,0.0115303]
[1769374948385,0.00083558,86739.0,86726.0,0.01153056]
[1769374948518,0.00083558,86739.0,86728.0,0.0115303]
[1769374948732,0.00083558,86739.0,86729.0,0.01153016]
[1769374948946,0.00083558,86739.0,86727.0,0.01153043]
[1769374949522,0.00083558,86739.0,86729.0,0.01153016]
[1769374949753,0.00083558,86739.0,86732.0,0.01152976]
[1769374949923,0.00083558,86739.0,86732.0,1.39023106]
[1769374950128,0.00083558,86739.0,86729.0,0.01153016]
[1769374950129,0.2943525,86759.0,86741.0,0.01152857]
[1769374950325,0.11493634,86758.0,86741.0,0.27693889]
[1769374950584,0.2943525,86768.0,86749.0,1.03191632]
[1769374950762,0.2943525,86768.0,86750.0,0.1038512]
[1769374950971,0.2943525,86768.0,86750.0,1.21714337]
[1769374951228,1.118366,86769.0,86750.0,1.21714337]
[1769374951229,1.118366,86766.0,86750.0,0.1038512]
[1769374951428,1.4127185,86766.0,86750.0,0.1038512]
[1769374951804,1.4127185,86766.0,86749.0,0.00014132]
[1769374951805,1.118366,86762.0,86749.0,0.00014132]
[1769374952018,0.2943525,86759.0,86749.0,0.00014132]
[1769374952174,0.2943525,86759.0,86738.0,0.01152897]
[1769374952175,0.01,86747.0,86738.0,0.17708]
[1769374952373,0.00014145,86747.0,86738.0,0.17708]
[1769374954349,0.00014145,86747.0,86738.0,1.30039328]
[1769374955542,0.00014145,86747.0,86738.0,0.17708]
[1769374956497,0.00014145,86747.0,86739.0,1.41828552]
[1769374959377,0.23050942,86765.0,86738.0,0.17708]
[1769374959378,0.23048308,86775.0,86738.0,0.17708]
[1769374959581,0.00014147,86774.0,86754.0,0.01152684]
[1769374959778,0.00014147,86774.0,86738.0,0.17708]
[1769374959779,0.00014147,86774.0,86755.0,1.64148552]
[1769374960010,1.08924347,86774.0,86755.0,0.2232]
[1769374960211,0.00014147,86774.0,86761.0,1.12331328]
[1769374960384,0.00014147,86774.0,86763.0,1.41828552]
[1769374960820,1.08924347,86774.0,86755.0,0.2232]
[1769374961122,0.01,86763.0,86755.0,0.2232]
[1769374961269,1.38974764,86773.0,86755.0,0.2232]
[1769374961671,1.089102,86772.0,86755.0,0.2232]
[1769374961899,1.10062645,86772.0,86756.0,1.12331328]
[1769374962092,0.30064564,86773.0,86756.0,1.12331328]
[1769374962425,0.00014147,86774.0,86757.0,1.12331328]
[1769374962630,0.00014147,86774.0,86761.0,1.12331328]
[1769374962786,0.00014147,86774.0,86762.0,0.29497224]
[1769374962988,0.00014147,86774.0,86763.0,1.12331328]
[1769374963218,0.00014147,86774.0,86764.0,0.29497224]
[1769374963421,0.00014147,86774.0,86767.0,1.41828552]
[1769374963624,0.31216704,86795.0,86769.0,1.12331328]
[1769374963821,0.31216704,86795.0,86772.0,0.29497224]
[1769374963822,0.01172206,86790.0,86772.0,0.29497224]
[1769374964021,0.01172206,86790.0,86774.0,0.29497224]
[1769374964223,0.01152219,86789.0,86774.0,0.29497224]
[1769374964538,0.06933242,86790.0,86774.0,0.29497224]
[1769374964739,0.01152233,86788.0,86774.0,0.29497224]
[1769374965039,0.01172206,86790.0,86774.0,0.29497224]
[1769374965342,0.01152219,86789.0,86774.0,0.29497224]
[1769374965552,0.01172206,86790.0,86774.0,0.29497224]
[1769374965772,0.01152233,86788.0,86774.0,0.29497224]
[1769374965978,0.01152233,86788.0,86773.0,1.30039328]
[1769374965979,1.089102,86785.0,86773.0,0.17708]
[1769374966151,0.66606603,86790.0,86773.0,0.17708]
[1769374966152,0.01152219,86789.0,86773.0,1.30039328]
[1769374966349,0.01152272,86785.0,86773.0,1.30039328]
[1769374966552,0.01152259,86786.0,86773.0,1.30039328]
[1769374966754,0.06913572,86786.0,86773.0,1.30039328]
[1769374966971,0.01152299,86783.0,86773.0,1.30039328]
[1769374967270,0.06913572,86786.0,86773.0,1.30039328]
[1769374967271,0.01152259,86786.0,86773.0,1.30039328]
[1769374967470,0.01152272,86785.0,86773.0,0.17708]
[1769374967670,1.10062446,86787.0,86773.0,0.17708]
[1769374968131,1.089102,86787.0,86773.0,0.17708]
[1769374968572,0.01152259,86786.0,86773.0,0.17708]
[1769374968984,0.01152272,86785.0,86773.0,0.17708]
[1769374969178,0.01152259,86786.0,86773.0,0.17708]
[1769374969329,1.089102,86787.0,86773.0,0.17708]
[1769374969528,0.01152286,86784.0,86773.0,0.17708]
[1769374969844,1.38974764,86781.0,86773.0,0.17708]
[1769374970256,1.089102,86781.0,86773.0,0.17708]
[1769374970485,1.10062525,86781.0,86772.0,0.00014147]
[1769374970643,1.089102,86780.0,86772.0,0.00014147]
[1769374970850,0.01152405,86775.0,86772.0,0.00014147]
[1769374971096,0.01152405,86775.0,86755.0,0.04612]
[1769374971097,0.00014147,86772.0,86752.0,0.29497224]
[1769374971302,1.089102,86770.0,86758.0,0.17704]
[1769374972071,0.30064564,86775.0,86752.0,0.29497224]
[1769374972072,0.01152498,86768.0,86752.0,0.29497224]
[1769374972272,1.089102,86767.0,86752.0,0.29497224]
[1769374972675,1.089102,86767.0,86754.0,0.01152684]
[1769374972850,0.30064564,86780.0,86759.0,0.29497224]
[1769374973159,0.30064564,86780.0,86762.0,1.41828552]
[1769374973388,1.089102,86779.0,86762.0,1.41828552]
[1769374973567,0.30064564,86780.0,86766.0,0.01152525]
[1769374973779,0.30064564,86780.0,86765.0,0.01152538]
[1769374973977,1.38974764,86780.0,86764.0,1.13483879]
[1769374974404,1.38974764,86780.0,86764.0,1.12331328]
[1769374974716,1.089102,86779.0,86762.0,0.29497224]
[1769374974931,0.30064564,86780.0,86759.0,0.00014139]
[1769374974932,0.01152485,86769.0,86759.0,0.00014139]
[1769374975070,1.089102,86767.0,86759.0,0.00014139]
[1769374975270,0.31217049,86769.0,86759.0,0.00014139]
[1769374975271,0.05762818,86764.0,86759.0,0.00014139]
[1769374975471,0.01152565,86763.0,86751.0,0.17704]
[1769374975756,0.01152671,86755.0,86736.0,0.17704]